[Event "44th Chess Olympiad Open 2022"]
[Site "Chennai"]
[Date "2022.08.05"]
[Round "7.47"]
[White "Pinales Roussel, Gabriel"]
[Black "Al-Subaihi, Khalil"]
[Result "1-0"]
[WhiteElo "1973"]
[BlackElo "2141"]
[Annotator "NA"]
[PlyCount "73"]
[EventDate "2022.??.??"]
[TimeControl "60"]

1. c4 {[%emt 0:00:04]} e5 {[%emt 0:00:08]} 2. Nc3 {[%emt 0:00:22]} f5 {[%emt 0:
00:00]} 3. d4 {[%emt 0:02:04]} e4 {[%emt 0:01:46]} 4. g3 {[%emt 0:00:37]} Bb4 {
[%emt 0:04:45]} 5. Nh3 {[%emt 0:01:53]} Nf6 {[%emt 0:03:15]} 6. a3 {[%emt 0:00:
00]} Bxc3+ {[%emt 0:00:16]} 7. bxc3 {[%emt 0:00:05]} O-O {[%emt 0:00:29]} 8.
Bg2 {[%emt 0:00:12]} b6 {[%emt 0:05:46]} 9. O-O {[%emt 0:06:30]} Nc6 {[%emt 0:
00:00]} 10. f3 {[%emt 0:03:05]} Na5 {[%emt 0:05:39]} 11. Bg5 {[%emt 0:05:19]}
Bb7 {[%emt 0:08:05]} 12. d5 {[%emt 0:10:41]} exf3 {[%emt 0:05:52]} 13. Rxf3 {
[%emt 0:07:48]} h6 {[%emt 0:02:18]} 14. Bxf6 {[%emt 0:00:15]} Qxf6 {[%emt 0:00:
00]} 15. c5 {[%emt 0:11:55]} Qe5 {[%emt 0:09:56]} 16. Nf4 {[%emt 0:02:42]} Kh7
{[%emt 0:00:15]} 17. Qd3 {[%emt 0:09:37]} Rae8 {[%emt 0:06:59]} 18. Raf1 {
[%emt 0:03:13]} g5 {[%emt 0:13:47]} 19. c6 {[%emt 0:00:20]} gxf4 {[%emt 0:00:
00]} 20. cxb7 {[%emt 0:00:06]} Qxe2 {[%emt 0:02:55]} 21. b8=Q {[%emt 0:03:49]}
Qxd3 {[%emt 0:04:57]} 22. Qxc7 {[%emt 0:00:19]} Qxd5 {[%emt 0:13:04]} 23. Rxf4
{[%emt 0:00:43]} Qe6 {[%emt 0:00:36]} 24. Rd4 {[%emt 0:01:18]} Re7 {[%emt 0:00:
00]} 25. Qf4 {[%emt 0:07:51]} Qg6 {[%emt 0:02:41]} 26. Bh3 {[%emt 0:03:19]} Qh5
{[%emt 0:01:17]} 27. Bxf5+ {[%emt 0:01:38]} Kg7 {[%emt 0:00:12]} 28. Rd5 {
[%emt 0:02:42]} Qg5 {[%emt 0:00:50]} 29. Qd4+ {[%emt 0:02:34]} Qf6 {[%emt 0:00:
00]} 30. Rxd7 {[%emt 0:01:10]} Rxd7 {[%emt 0:00:15]} 31. Qxd7+ {[%emt 0:00:33]}
Rf7 {[%emt 0:00:10]} 32. Qd3 {[%emt 0:00:19]} Qe5 {[%emt 0:00:36]} 33. Rf4 {
[%emt 0:00:31]} Nb3 {[%emt 0:00:53]} 34. Rg4+ {[%emt 0:00:50]} Kf8 {[%emt 0:00:
00]} 35. Qd8+ {[%emt 0:00:25]} Qe8 {[%emt 0:00:05]} 36. Rg8+ {[%emt 0:00:04]}
Kxg8 {[%emt 0:00:06]} 37. Qxe8+ {[%emt 0:00:05]} 1-0

[Event "44th Chess Olympiad Open 2022"]
[Site "Chennai"]
[Date "2022.08.05"]
[Round "7.49"]
[White "Chahin Godoy, Angel Eduardo"]
[Black "Delgado Rosas, Alex Antonio"]
[Result "0-1"]
[WhiteElo "1844"]
[BlackElo "2149"]
[Annotator "NA"]
[PlyCount "96"]
[EventDate "2022.??.??"]
[TimeControl "60"]

1. e4 {[%emt 0:00:25]} c5 {[%emt 0:00:02]} 2. Nf3 {[%emt 0:01:11]} g6 {[%emt 0:
00:00]} 3. c3 {[%emt 0:03:12]} d5 {[%emt 0:04:25]} 4. e5 {[%emt 0:00:54]} Bg7 {
[%emt 0:03:10]} 5. d4 {[%emt 0:00:10]} cxd4 {[%emt 0:06:16]} 6. cxd4 {[%emt 0:
00:00]} Nh6 {[%emt 0:00:36]} 7. Nc3 {[%emt 0:01:33]} O-O {[%emt 0:02:04]} 8.
Be2 {[%emt 0:00:22]} Nc6 {[%emt 0:01:41]} 9. Qb3 {[%emt 0:05:43]} Nf5 {[%emt 0:
00:00]} 10. Qd1 {[%emt 0:23:21]} e6 {[%emt 0:04:04]} 11. g4 {[%emt 0:10:22]}
Nh4 {[%emt 0:01:35]} 12. Nxh4 {[%emt 0:04:07]} Qxh4 {[%emt 0:00:15]} 13. Bf4 {
[%emt 0:00:11]} Qe7 {[%emt 0:02:34]} 14. g5 {[%emt 0:16:52]} a6 {[%emt 0:13:08]
} 15. a3 {[%emt 0:02:06]} b5 {[%emt 0:00:28]} 16. Qd2 {[%emt 0:03:26]} Bb7 {
[%emt 0:09:51]} 17. O-O {[%emt 0:03:25]} Qc7 {[%emt 0:03:29]} 18. Rac1 {
[%emt 0:04:21]} Qb6 {[%emt 0:01:47]} 19. Rfd1 {[%emt 0:00:10]} Na5 {[%emt 0:00:
00]} 20. Rc2 {[%emt 0:03:29]} Rac8 {[%emt 0:00:27]} 21. Be3 {[%emt 0:08:20]}
Rfd8 {[%emt 0:02:04]} 22. b4 {[%emt 0:03:11]} Nc4 {[%emt 0:00:37]} 23. Bxc4 {
[%emt 0:00:04]} dxc4 {[%emt 0:00:40]} 24. f4 {[%emt 0:02:15]} Qc6 {[%emt 0:00:
00]} 25. d5 {[%emt 0:00:16]} exd5 {[%emt 0:00:19]} 26. Bd4 {[%emt 0:00:10]} Bf8
{[%emt 0:01:36]} 27. Qe3 {[%emt 0:00:53]} a5 {[%emt 0:01:27]} 28. bxa5 {
[%emt 0:00:09]} Ra8 {[%emt 0:05:47]} 29. Rb1 {[%emt 0:03:12]} Rxa5 {[%emt 0:00:
00]} 30. Rcb2 {[%emt 0:00:35]} Rxa3 {[%emt 0:07:29]} 31. Rxb5 {[%emt 0:00:09]}
Bc8 {[%emt 0:00:48]} 32. Rb6 {[%emt 0:00:26]} Qd7 {[%emt 0:00:01]} 33. Rb8 {
[%emt 0:01:01]} Qg4+ {[%emt 0:01:46]} 34. Qg3 {[%emt 0:00:13]} Qf5 {[%emt 0:00:
00]} 35. Qe3 {[%emt 0:00:41]} Be7 {[%emt 0:01:26]} 36. Qg3 {[%emt 0:00:46]} Qc2
{[%emt 0:02:06]} 37. R8b2 {[%emt 0:00:29]} Qf5 {[%emt 0:00:39]} 38. Rb8 {
[%emt 0:00:04]} Qc2 {[%emt 0:00:12]} 39. R8b2 {[%emt 0:00:05]} Rxc3 {[%emt 0:
00:00]} 40. Qxc3 {[%emt 0:00:20]} Qxc3 {[%emt 0:00:16]} 41. Bxc3 {[%emt 0:00:
00]} Bf5 {[%emt 0:30:45]} 42. Bd4 {[%emt 0:00:00]} Bxb1 {[%emt 0:00:00]} 43.
Rxb1 {[%emt 0:00:00]} Rc8 {[%emt 0:00:00]} 44. Kf1 {[%emt 0:00:00]} Bc5 {
[%emt 0:00:00]} 45. Bxc5 {[%emt 0:00:00]} Rxc5 {[%emt 0:00:00]} 46. Ke2 {
[%emt 0:00:00]} d4 {[%emt 0:00:00]} 47. Rb8+ {[%emt 0:00:00]} Kg7 {[%emt 0:00:
00]} 48. Kd2 {[%emt 0:00:00]} c3+ {[%emt 0:00:00]} 0-1

[Event "44th Chess Olympiad Open 2022"]
[Site "Chennai"]
[Date "2022.08.05"]
[Round "7.50"]
[White "Rabeea, Sabah Nori"]
[Black "Mizzi, Jack"]
[Result "1-0"]
[WhiteElo "2122"]
[BlackElo "1913"]
[Annotator "NA"]
[PlyCount "77"]
[EventDate "2022.??.??"]
[TimeControl "60"]

1. d4 {[%emt 0:00:37]} d5 {[%emt 0:00:14]} 2. Nf3 {[%emt 0:00:18]} Nf6 {
[%emt 0:00:25]} 3. c4 {[%emt 0:00:09]} c6 {[%emt 0:00:37]} 4. Nc3 {[%emt 0:00:
00]} e6 {[%emt 0:01:35]} 5. e3 {[%emt 0:00:10]} Nbd7 {[%emt 0:00:43]} 6. Bd3 {
[%emt 0:00:10]} Bd6 {[%emt 0:00:52]} 7. O-O {[%emt 0:00:09]} O-O {[%emt 0:00:
00]} 8. e4 {[%emt 0:01:57]} dxe4 {[%emt 0:04:34]} 9. Nxe4 {[%emt 0:00:12]} Nxe4
{[%emt 0:02:11]} 10. Bxe4 {[%emt 0:00:02]} Nf6 {[%emt 0:01:05]} 11. Bc2 {
[%emt 0:01:26]} c5 {[%emt 0:05:55]} 12. Bg5 {[%emt 0:07:03]} h6 {[%emt 0:05:22]
} 13. Bh4 {[%emt 0:00:19]} cxd4 {[%emt 0:04:38]} 14. Qd3 {[%emt 0:01:50]} Re8 {
[%emt 0:01:26]} 15. Nxd4 {[%emt 0:31:40]} Be5 {[%emt 0:19:37]} 16. Rad1 {
[%emt 0:08:02]} Bxd4 {[%emt 0:12:15]} 17. Qxd4 {[%emt 0:00:04]} Qxd4 {[%emt 0:
00:00]} 18. Rxd4 {[%emt 0:00:23]} e5 {[%emt 0:03:24]} 19. Rd6 {[%emt 0:01:46]}
Be6 {[%emt 0:01:13]} 20. c5 {[%emt 0:03:35]} Rec8 {[%emt 0:10:33]} 21. b4 {
[%emt 0:02:06]} a5 {[%emt 0:03:17]} 22. Bxf6 {[%emt 0:09:17]} gxf6 {[%emt 0:00:
00]} 23. Be4 {[%emt 0:00:10]} Rc7 {[%emt 0:03:23]} 24. a3 {[%emt 0:00:24]} axb4
{[%emt 0:05:41]} 25. axb4 {[%emt 0:00:02]} f5 {[%emt 0:00:35]} 26. Bd5 {
[%emt 0:04:54]} Bxd5 {[%emt 0:00:32]} 27. Rxd5 {[%emt 0:00:02]} Ra4 {[%emt 0:
00:00]} 28. Rb1 {[%emt 0:00:39]} b6 {[%emt 0:00:57]} 29. cxb6 {[%emt 0:07:20]}
Rxb4 {[%emt 0:00:53]} 30. Rdd1 {[%emt 0:00:01]} Rxb1 {[%emt 0:01:18]} 31. Rxb1
{[%emt 0:04:21]} Rb7 {[%emt 0:02:41]} 32. Kf1 {[%emt 0:00:01]} Kf8 {[%emt 0:00:
00]} 33. Ke2 {[%emt 0:00:02]} Ke7 {[%emt 0:00:13]} 34. Kd3 {[%emt 0:00:01]} Kd6
{[%emt 0:00:50]} 35. Kc4 {[%emt 0:00:02]} Kc6 {[%emt 0:00:18]} 36. g3 {[%emt 0:
00:00]} f6 {[%emt 0:03:06]} 37. h4 {[%emt 0:00:54]} h5 {[%emt 0:00:34]} 38. Rb5
{[%emt 0:00:09]} Rd7 {[%emt 0:02:50]} 39. b7 {[%emt 0:01:18]} 1-0

[Event "44th Chess Olympiad Open 2022"]
[Site "Chennai"]
[Date "2022.08.05"]
[Round "7.51"]
[White "Ilkhomi, Jaloliddin"]
[Black "Gabriel, Davidson"]
[Result "1-0"]
[WhiteElo "2076"]
[BlackElo "1915"]
[Annotator "NA RC"]
[PlyCount "119"]
[EventDate "2022.??.??"]
[TimeControl "60"]

1. d4 {[%emt 0:00:05]} Nf6 {[%emt 0:00:13]} 2. Bf4 {[%emt 0:00:53]} e6 {
[%emt 0:01:35]} 3. e3 {[%emt 0:00:37]} d5 {[%emt 0:01:50]} 4. Nd2 {[%emt 0:00:
00]} Bd6 {[%emt 0:00:40]} 5. Bg3 {[%emt 0:00:26]} O-O {[%emt 0:00:31]} 6. Ngf3
{[%emt 0:00:12]} c5 {[%emt 0:00:42]} 7. c3 {[%emt 0:00:09]} Nc6 {[%emt 0:01:58]
} 8. Bd3 {[%emt 0:00:07]} b6 {[%emt 0:01:21]} 9. Ne5 {[%emt 0:01:55]} Bb7 {
[%emt 0:00:24]} 10. f4 {[%emt 0:01:10]} Ne7 {[%emt 0:01:44]} 11. Qb1 {[%emt 0:
00:00]} c4 {[%emt 0:19:59]} 12. Bc2 {[%emt 0:01:00]} b5 {[%emt 0:07:02]} 13.
O-O {[%emt 0:14:10]} Rb8 {[%emt 0:10:38]} 14. Bh4 {[%emt 0:00:48]} h6 {[%emt 0:
00:00]} 15. Rf3 {[%emt 0:04:00]} Ne8 {[%emt 0:02:43]} 16. g4 {[%emt 0:21:10]}
f6 {[%emt 0:09:05]} 17. Ng6 {[%emt 0:03:24]} Nxg6 {[%emt 0:00:15]} 18. Bxg6 {
[%emt 0:00:02]} Be7 {[%emt 0:03:39]} 19. Qc2 {[%emt 0:03:58]} Nd6 {[%emt 0:00:
00]} 20. Kh1 {[%emt 0:02:07]} Bc6 {[%emt 0:02:55]} 21. Rg1 {[%emt 0:03:08]} b4
{[%emt 0:02:16]} 22. Rh3 {[%emt 0:04:10]} bxc3 {[%emt 0:06:23]} 23. bxc3 {
[%emt 0:01:16]} f5 {[%emt 0:01:08]} 24. Bxe7 {[%emt 0:02:05]} Qxe7 {[%emt 0:00:
00]} 25. g5 {[%emt 0:00:01]} hxg5 {[%emt 0:01:02]} 26. Rxg5 {[%emt 0:02:21]}
Be8 {[%emt 0:00:27]} 27. Qd1 {[%emt 0:07:26]} Bxg6 {[%emt 0:00:33]} 28. Rxg6 {
[%emt 0:00:01]} Rf6 {[%emt 0:01:19]} 29. Qh5 {[%emt 0:00:55]} Rxg6 {[%emt 0:00:
00]} 30. Qh8+ {[%emt 0:00:01]} Kf7 {[%emt 0:00:33]} 31. Qxb8 {[%emt 0:00:03]}
Rh6 {[%emt 0:02:04]} 32. Kg2 {[%emt 0:05:48]} Rxh3 {[%emt 0:00:41]} 33. Kxh3 {
[%emt 0:00:08]} Ne4 {[%emt 0:01:06]} 34. Nf3 {[%emt 0:06:36]} g5 {[%emt 0:00:
00]} 35. fxg5 {[%emt 0:01:06]} Nxg5+ {[%emt 0:00:35]} 36. Kg2 {[%emt 0:01:36]}
Nxf3 {[%emt 0:00:34]} 37. Kxf3 {[%emt 0:00:02]} a5 {[%emt 0:01:43]} 38. Qh8 {
[%emt 0:01:18]} Qg5 {[%emt 0:00:22]} 39. Qh3 {[%emt 0:00:22]} Qg1 {[%emt 0:00:
00]} 40. Kf4 {[%emt 0:01:35]} Ke7 {[%emt 0:01:16]} 41. Qg3 {[%emt 0:30:25]} Qd1
{[%emt 0:31:08]} 42. Ke5 {[%emt 0:00:20]} Qd2 {[%emt 0:00:00]} 43. Qg7+ {
[%emt 0:00:00]} Kd8 {[%emt 0:00:00]} 44. Qf8+ {[%emt 0:00:00]} Kd7 {[%emt 0:00:
00]} 45. Qd6+ {[%emt 0:00:00]} Kc8 {[%emt 0:00:00]} 46. Qxe6+ {[%emt 0:00:00]}
Kc7 {[%emt 0:00:00]} 47. Qd6+ {[%emt 0:00:00]} Kc8 {[%emt 0:00:00]} 48. Qc5+ {
[%emt 0:00:00]} Kb8 {[%emt 0:00:00]} 49. Qf8+ {[%emt 0:00:00]} Kc7 {[%emt 0:00:
00]} 50. Qe7+ {[%emt 0:00:00]} Kb6 {[%emt 0:00:00]} 51. Qd6+ {[%emt 0:00:00]}
Ka7 {[%emt 0:00:00]} 52. Qc7+ {[%emt 0:00:00]} Ka6 {[%emt 0:00:00]} 53. Kxd5 {
[%emt 0:00:00]} Qxe3 {[%emt 0:00:00]} 54. Kc5 {[%emt 0:00:00]} Qe6 {[%emt 0:00:
00]} 55. a4 {[%emt 0:00:00]} f4 {[%emt 0:00:00]} 56. Qxf4 {[%emt 0:00:00]} Qb6+
{[%emt 0:00:00]} 57. Kxc4 {[%emt 0:00:00]} Qc6+ {[%emt 0:00:00]} 58. Kb3 {
[%emt 0:00:00]} Qb7+ {[%emt 0:00:00]} 59. Kc2 {[%emt 0:00:00]} Qg2+ {[%emt 0:
00:00]} 60. Qd2 {[%emt 0:00:00]} 1-0

[Event "44th Chess Olympiad Open 2022"]
[Site "Chennai"]
[Date "2022.08.05"]
[Round "7.51"]
[White "Germinal, Kemly"]
[Black "Sharifov, Mekhriddin"]
[Result "0-1"]
[WhiteElo "1997"]
[BlackElo "2097"]
[Annotator "NA RC"]
[PlyCount "96"]
[EventDate "2022.??.??"]
[TimeControl "60"]

1. e4 {[%emt 0:00:06]} c5 {[%emt 0:00:07]} 2. Nc3 {[%emt 0:00:08]} a6 {[%emt 0:
00:00]} 3. Nf3 {[%emt 0:01:54]} d6 {[%emt 0:01:22]} 4. d3 {[%emt 0:03:52]} Nc6
{[%emt 0:00:30]} 5. g3 {[%emt 0:02:44]} g6 {[%emt 0:01:18]} 6. Bg2 {[%emt 0:00:
00]} Bg7 {[%emt 0:00:06]} 7. O-O {[%emt 0:01:54]} e6 {[%emt 0:00:32]} 8. Bg5 {
[%emt 0:04:11]} Qb6 {[%emt 0:02:25]} 9. Rb1 {[%emt 0:00:28]} Nf6 {[%emt 0:00:
00]} 10. h3 {[%emt 0:05:53]} h6 {[%emt 0:04:18]} 11. Be3 {[%emt 0:00:20]} Qc7 {
[%emt 0:05:29]} 12. Qd2 {[%emt 0:08:17]} e5 {[%emt 0:04:57]} 13. Kh2 {[%emt 0:
00:00]} Be6 {[%emt 0:01:10]} 14. a3 {[%emt 0:03:08]} Rc8 {[%emt 0:03:36]} 15.
a4 {[%emt 0:05:00]} Nd4 {[%emt 0:04:21]} 16. Ng1 {[%emt 0:01:28]} h5 {[%emt 0:
00:00]} 17. Nf3 {[%emt 0:22:37]} Ng4+ {[%emt 0:07:26]} 18. hxg4 {[%emt 0:06:39]
} Nxf3+ {[%emt 0:00:15]} 19. Bxf3 {[%emt 0:00:07]} hxg4+ {[%emt 0:00:15]} 20.
Kg2 {[%emt 0:00:05]} gxf3+ {[%emt 0:00:21]} 21. Kxf3 {[%emt 0:00:28]} Qd7 {
[%emt 0:01:03]} 22. Ke2 {[%emt 0:06:19]} Rh2 {[%emt 0:00:53]} 23. Qe1 {[%emt 0:
00:00]} Bg4+ {[%emt 0:02:07]} 24. Kd2 {[%emt 0:00:26]} Bf3 {[%emt 0:00:10]} 25.
b3 {[%emt 0:04:15]} b5 {[%emt 0:08:15]} 26. axb5 {[%emt 0:00:32]} axb5 {
[%emt 0:00:05]} 27. Ra1 {[%emt 0:01:13]} Bf6 {[%emt 0:08:00]} 28. Nd5 {[%emt 0:
00:00]} Bd8 {[%emt 0:00:13]} 29. Ra6 {[%emt 0:02:15]} c4 {[%emt 0:05:24]} 30.
Qa1 {[%emt 0:01:21]} Kf8 {[%emt 0:09:54]} 31. Qa3 {[%emt 0:00:45]} Rc6 {
[%emt 0:00:45]} 32. Ra7 {[%emt 0:02:06]} Qh3 {[%emt 0:00:07]} 33. Rg1 {[%emt 0:
00:00]} Kg7 {[%emt 0:06:48]} 34. Ra8 {[%emt 0:00:27]} c3+ {[%emt 0:05:38]} 35.
Nxc3 {[%emt 0:00:40]} Bb6 {[%emt 0:00:54]} 36. Bxb6 {[%emt 0:01:33]} b4 {
[%emt 0:01:30]} 37. Qxb4 {[%emt 0:00:47]} Qh6+ {[%emt 0:00:05]} 38. Be3 {
[%emt 0:00:43]} Rxf2+ {[%emt 0:00:04]} 39. Kc1 {[%emt 0:00:18]} Qxe3+ {[%emt 0:
00:00]} 40. Kb2 {[%emt 0:00:14]} Rxc2+ {[%emt 0:00:10]} 41. Kxc2 {[%emt 0:00:
00]} Qf2+ {[%emt 0:32:28]} 42. Kb1 {[%emt 0:00:00]} Qxg1+ {[%emt 0:00:00]} 43.
Kb2 {[%emt 0:00:00]} Bg4 {[%emt 0:00:00]} 44. Rd8 {[%emt 0:00:00]} Qe3 {
[%emt 0:00:00]} 45. Rxd6 {[%emt 0:00:00]} Qd2+ {[%emt 0:00:00]} 46. Ka3 {
[%emt 0:00:00]} Qc1+ {[%emt 0:00:00]} 47. Ka4 {[%emt 0:00:00]} Qa1+ {[%emt 0:
00:00]} 48. Qa3 {[%emt 0:00:00]} Qxc3 {[%emt 0:00:00]} 0-1

[Event "44th Chess Olympiad Open 2022"]
[Site "Chennai"]
[Date "2022.08.05"]
[Round "7.52"]
[White "Li, Georgiy"]
[Black "Al-Homaid, Abdulla"]
[Result "1-0"]
[WhiteElo "1994"]
[BlackElo "1358"]
[Annotator "NA"]
[PlyCount "97"]
[EventDate "2022.??.??"]
[TimeControl "60"]

1. e4 {[%emt 0:00:10]} e5 {[%emt 0:00:10]} 2. Nf3 {[%emt 0:00:09]} Nc6 {
[%emt 0:00:06]} 3. Be2 {[%emt 0:00:21]} Nf6 {[%emt 0:00:34]} 4. Nc3 {[%emt 0:
00:00]} Bc5 {[%emt 0:02:26]} 5. Nxe5 {[%emt 0:00:23]} Nxe5 {[%emt 0:00:51]} 6.
d4 {[%emt 0:00:13]} Bxd4 {[%emt 0:03:22]} 7. Qxd4 {[%emt 0:00:16]} Nc6 {
[%emt 0:00:31]} 8. Qa4 {[%emt 0:01:26]} d6 {[%emt 0:02:20]} 9. Bg5 {[%emt 0:00:
00]} h6 {[%emt 0:04:09]} 10. Bh4 {[%emt 0:00:16]} Bd7 {[%emt 0:05:12]} 11. Nd5
{[%emt 0:00:35]} g5 {[%emt 0:00:40]} 12. Bg3 {[%emt 0:00:34]} Nxd5 {[%emt 0:00:
00]} 13. exd5 {[%emt 0:00:29]} Ne5 {[%emt 0:00:39]} 14. Qb3 {[%emt 0:00:57]} b6
{[%emt 0:09:14]} 15. O-O {[%emt 0:02:00]} O-O {[%emt 0:14:35]} 16. f4 {[%emt 0:
00:00]} Ng6 {[%emt 0:01:52]} 17. fxg5 {[%emt 0:00:41]} hxg5 {[%emt 0:03:49]}
18. Bh5 {[%emt 0:02:15]} Kh7 {[%emt 0:05:13]} 19. Qc3 {[%emt 0:01:52]} f5 {
[%emt 0:03:34]} 20. Rae1 {[%emt 0:05:02]} Rc8 {[%emt 0:04:53]} 21. Qd3 {
[%emt 0:11:26]} Qf6 {[%emt 0:03:07]} 22. c3 {[%emt 0:03:24]} a5 {[%emt 0:04:35]
} 23. Qd1 {[%emt 0:05:34]} Rce8 {[%emt 0:00:57]} 24. Be2 {[%emt 0:01:08]} Re7 {
[%emt 0:00:46]} 25. Bf2 {[%emt 0:02:38]} Rfe8 {[%emt 0:01:14]} 26. Bd4 {
[%emt 0:00:20]} Qf8 {[%emt 0:01:15]} 27. g3 {[%emt 0:02:03]} Re4 {[%emt 0:00:
00]} 28. Bd3 {[%emt 0:01:59]} Rxe1 {[%emt 0:00:27]} 29. Rxe1 {[%emt 0:00:08]}
Rxe1+ {[%emt 0:00:15]} 30. Qxe1 {[%emt 0:00:07]} Qe7 {[%emt 0:00:19]} 31. Qxe7+
{[%emt 0:00:54]} Nxe7 {[%emt 0:00:10]} 32. Bf6 {[%emt 0:00:21]} Nxd5 {[%emt 0:
00:00]} 33. Bxg5 {[%emt 0:00:16]} Kg6 {[%emt 0:00:57]} 34. Bd8 {[%emt 0:00:30]}
b5 {[%emt 0:05:13]} 35. Kf2 {[%emt 0:00:39]} a4 {[%emt 0:00:46]} 36. h4 {
[%emt 0:00:23]} c5 {[%emt 0:00:44]} 37. g4 {[%emt 0:01:02]} b4 {[%emt 0:02:37]}
38. gxf5+ {[%emt 0:00:28]} Kg7 {[%emt 0:02:23]} 39. c4 {[%emt 0:01:21]} Nf6 {
[%emt 0:00:26]} 40. Kf3 {[%emt 0:02:29]} Bc6+ {[%emt 0:00:55]} 41. Kf4 {
[%emt 0:30:55]} Be8 {[%emt 0:30:36]} 42. Be7 {[%emt 0:01:09]} d5 {[%emt 0:00:
00]} 43. Ke5 {[%emt 0:00:00]} Nd7+ {[%emt 0:00:00]} 44. Kxd5 {[%emt 0:00:00]}
Bf7+ {[%emt 0:00:00]} 45. Kd6 {[%emt 0:00:00]} Be8 {[%emt 0:00:00]} 46. Bg5 {
[%emt 0:00:00]} b3 {[%emt 0:00:00]} 47. axb3 {[%emt 0:00:00]} axb3 {[%emt 0:00:
00]} 48. h5 {[%emt 0:00:00]} Nf6 {[%emt 0:00:00]} 49. Ke7 {[%emt 0:00:00]} 1-0

[Event "44th Chess Olympiad Open 2022"]
[Site "Chennai"]
[Date "2022.08.05"]
[Round "7.53"]
[White "Verdier, Patrice"]
[Black "Ndahangwapo, Heskiel"]
[Result "0-1"]
[WhiteElo "2017"]
[BlackElo "1904"]
[Annotator "NA RC"]
[PlyCount "116"]
[EventDate "2022.??.??"]
[TimeControl "60"]

1. d4 {[%emt 0:00:09]} Nf6 {[%emt 0:00:51]} 2. c4 {[%emt 0:00:09]} g6 {[%emt 0:
00:00]} 3. Nc3 {[%emt 0:00:12]} Bg7 {[%emt 0:00:20]} 4. e4 {[%emt 0:00:25]} d6
{[%emt 0:00:12]} 5. f4 {[%emt 0:00:36]} O-O {[%emt 0:00:18]} 6. Nf3 {[%emt 0:
00:00]} c5 {[%emt 0:05:00]} 7. d5 {[%emt 0:00:09]} Re8 {[%emt 0:00:33]} 8. Be2
{[%emt 0:20:56]} e6 {[%emt 0:00:52]} 9. dxe6 {[%emt 0:03:53]} Bxe6 {[%emt 0:00:
00]} 10. O-O {[%emt 0:00:12]} Nc6 {[%emt 0:00:25]} 11. h3 {[%emt 0:03:43]} Nd4
{[%emt 0:06:32]} 12. Bd3 {[%emt 0:03:23]} Bd7 {[%emt 0:01:35]} 13. Re1 {
[%emt 0:06:34]} Bc6 {[%emt 0:04:58]} 14. Nxd4 {[%emt 0:01:04]} cxd4 {[%emt 0:
00:00]} 15. Nd5 {[%emt 0:00:08]} Bxd5 {[%emt 0:00:51]} 16. cxd5 {[%emt 0:09:47]
} Qb6 {[%emt 0:01:08]} 17. Kh1 {[%emt 0:06:01]} Nd7 {[%emt 0:01:38]} 18. b3 {
[%emt 0:00:22]} Re7 {[%emt 0:05:22]} 19. Ba3 {[%emt 0:02:29]} Nf6 {[%emt 0:00:
00]} 20. Qf3 {[%emt 0:04:27]} Rd7 {[%emt 0:02:05]} 21. Bc4 {[%emt 0:01:51]} Qa5
{[%emt 0:01:17]} 22. b4 {[%emt 0:03:53]} Qd8 {[%emt 0:00:06]} 23. Bb2 {[%emt 0:
00:00]} Rc7 {[%emt 0:02:58]} 24. Bb3 {[%emt 0:00:46]} Nd7 {[%emt 0:02:39]} 25.
Rad1 {[%emt 0:00:28]} Qh4 {[%emt 0:00:17]} 26. Rf1 {[%emt 0:01:36]} Nf6 {
[%emt 0:02:13]} 27. Bxd4 {[%emt 0:04:34]} Nh5 {[%emt 0:00:14]} 28. Kh2 {
[%emt 0:07:09]} Rac8 {[%emt 0:02:08]} 29. g3 {[%emt 0:00:57]} Qe7 {[%emt 0:00:
00]} 30. g4 {[%emt 0:01:30]} Bxd4 {[%emt 0:00:53]} 31. Rxd4 {[%emt 0:00:23]}
Rc3 {[%emt 0:00:25]} 32. Rd3 {[%emt 0:00:09]} Rxd3 {[%emt 0:00:08]} 33. Qxd3 {
[%emt 0:00:08]} Nxf4 {[%emt 0:00:10]} 34. Qd4 {[%emt 0:09:48]} g5 {[%emt 0:00:
00]} 35. Re1 {[%emt 0:00:36]} f6 {[%emt 0:01:21]} 36. Bc4 {[%emt 0:02:50]} Qe5
{[%emt 0:02:19]} 37. Qxe5 {[%emt 0:00:40]} fxe5 {[%emt 0:00:05]} 38. Bb3 {
[%emt 0:01:35]} Rc3 {[%emt 0:00:16]} 39. Ba4 {[%emt 0:01:49]} Rxh3+ {[%emt 0:
00:00]} 40. Kg1 {[%emt 0:00:04]} Rc3 {[%emt 0:00:32]} 41. Bd7 {[%emt 0:30:38]}
Rc2 {[%emt 0:30:20]} 42. a4 {[%emt 0:02:08]} Kg7 {[%emt 0:00:55]} 43. b5 {
[%emt 0:00:00]} h5 {[%emt 0:00:00]} 44. gxh5 {[%emt 0:00:00]} Kh6 {[%emt 0:00:
00]} 45. Kh1 {[%emt 0:00:00]} Kxh5 {[%emt 0:00:00]} 46. b6 {[%emt 0:00:00]}
axb6 {[%emt 0:00:00]} 47. Rb1 {[%emt 0:00:00]} Rc7 {[%emt 0:00:00]} 48. Bf5 {
[%emt 0:00:00]} g4 {[%emt 0:00:00]} 49. Rg1 {[%emt 0:00:00]} Rg7 {[%emt 0:00:
00]} 50. Kh2 {[%emt 0:00:00]} Kh4 {[%emt 0:00:00]} 51. Rg3 {[%emt 0:00:00]} Ne2
{[%emt 0:00:00]} 52. Re3 {[%emt 0:00:00]} g3+ {[%emt 0:00:00]} 53. Kg2 {
[%emt 0:00:00]} Nf4+ {[%emt 0:00:00]} 54. Kg1 {[%emt 0:00:00]} Rc7 {[%emt 0:00:
00]} 55. Re1 {[%emt 0:00:00]} Rc2 {[%emt 0:00:00]} 56. Ra1 {[%emt 0:00:00]}
Ne2+ {[%emt 0:00:00]} 57. Kf1 {[%emt 0:01:33]} Nd4 {[%emt 0:00:00]} 58. Ra3 {
[%emt 0:00:29]} Rf2+ {[%emt 0:00:00]} 0-1